[Event "EYCC Open U10 2021"]
[Site "Tornelo"]
[Date "2021.10.15"]
[Round "4.4"]
[White "Williams, Oscar"]
[Black "Ivanov, Andrey A."]
[Result "1/2-1/2"]
[ECO "B27"]
[WhiteElo "1405"]
[BlackElo "2180"]
[Annotator "ChessBase"]
[PlyCount "106"]
[EventDate "2021.10.15"]
[EventType "swiss"]
[EventCountry "NET"]
[SourceTitle "playchess.com"]
[Source "ChessBase"]
[SourceQuality "1"]
[TimeControl "5400+30"]

1. e4 {[%emt 0:00:30]} c5 {[%emt 0:00:40]} 2. Nf3 {[%emt 0:00:05]} g6 {[%emt 0:00:06]} 3. d4 {[%emt 0:00:08]} cxd4 {[%emt 0:00:12]} 4. Qxd4 {[%emt 0:00:04]} Nf6 {[%emt 0:00:12]} 5. Nc3 {[%emt 0:00:05]} Nc6 {[%emt 0:00:19]} 6. Qa4 {[%emt 0:00:05]} d6 {[%emt 0:00:27]} 7. e5 {[%emt 0:00:04]} dxe5 {[%emt 0:00:17]} 8. Nxe5 {[%emt 0:00:06]} Bd7 {[%emt 0:00:25]} 9. Nxd7 {[%emt 0:00:11]} Nxd7 {[%emt 0:00:03]} 10. Bb5 {[%emt 0:00:36]} Bg7 {[%emt 0:00:04]} 11. Bd2 {[%emt 0:01:06]} O-O {[%emt 0:00:38]} 12. O-O-O {[%emt 0:02:41]} Nb6 {[%emt 0:03:15]} 13. Qe4 {[%emt 0:02:07]} Qc8 {[%emt 0:04:55]} 14. Ne2 {[%emt 0:05:09]} f5 {[%emt 0:01:39]} 15. Qd3 {[%emt 0:08:36]} e5 {[%emt 0:07:37]} 16. h4 {[%emt 0:02:52]} a6 {[%emt 0:00:42]} 17. Qb3+ {[%emt 0:01:22]} Kh8 {[%emt 0:00:09]} 18. Bxc6 {[%emt 0:00:25]} Qxc6 {[%emt 0:00:05]} 19. h5 {[%emt 0:01:44]} g5 {[%emt 0:13:55]} 20. Bxg5 {[%emt 0:19:30]} h6 {[%emt 0:01:43]} 21. Be7 {[%emt 0:19:20]} Rfc8 {[%emt 0:04:08]} 22. Rd6 {[%emt 0:06:19]} Qc7 {[%emt 0:01:11]} 23. Rxb6 {[%emt 0:01:13]} Qxe7 {[%emt 0:00:44]} 24. Rxb7 {[%emt 0:09:17]} Qg5+ {[%emt 0:01:03]} 25. Kb1 {[%emt 0:01:20]} a5 {[%emt 0:08:58]} 26. Qg3 {[%emt 0:01:24]} Qf6 {[%emt 0:01:36]} 27. Qg6 {[%emt 0:00:28]} Qxg6 {[%emt 0:00:54]} 28. hxg6 {[%emt 0:00:07]} Rc6 {[%emt 0:00:03]} 29. Rh3 {[%emt 0:01:56]} f4 {[%emt 0:01:12]} 30. Rd3 {[%emt 0:02:19]} Rxg6 {[%emt 0:00:57]} 31. g3 {[%emt 0:00:36]} Rf8 {[%emt 0:03:44]} 32. a3 {[%emt 0:01:46]} e4 {[%emt 0:00:45]} 33. Rd1 {[%emt 0:00:47]} e3 {[%emt 0:02:23]} 34. fxe3 {[%emt 0:06:58]} fxg3 {[%emt 0:03:58]} 35. Nxg3 {[%emt 0:00:08]} Rxg3 {[%emt 0:01:09]} 36. Rd5 {[%emt 0:00:49]} Rxe3 {[%emt 0:00:38]} 37. Rxa5 {[%emt 0:00:48]} Rf2 {[%emt 0:00:33]} 38. Ra8+ {[%emt 0:00:39]} Rf8 {[%emt 0:00:31]} 39. Raa7 {[%emt 0:00:22]} Rg3 {[%emt 0:00:16]} 40. a4 {[%emt 0:00:57]} Rf1+ {[%emt 0:00:20]} 41. Ka2 {[%emt 0:00:07]} Rgg1 {[%emt 0:00:22]} 42. a5 {[%emt 0:00:46]} Ra1+ {[%emt 0:00:06]} 43. Kb3 {[%emt 0:00:07]} Rg5 {[%emt 0:00:36]} 44. a6 {[%emt 0:00:17]} Bd4 {[%emt 0:09:42]} 45. Ra8+ {[%emt 0:01:09]} Rg8 {[%emt 0:00:06]} 46. Rxg8+ {[%emt 0:00:36]} Kxg8 {[%emt 0:00:04]} 47. Kc4 {[%emt 0:00:21]} Be3 {[%emt 0:01:34]} 48. Kd3 {[%emt 0:00:34]} Bf2 {[%emt 0:00:18]} 49. Ke2 {[%emt 0:00:15]} Bg1 {[%emt 0:00:13]} 50. Rb3 {[%emt 0:00:37]} Ba7 {[%emt 0:00:44]} 51. Ra3 {[%emt 0:00:43]} Rxa3 {[%emt 0:00:09]} 52. bxa3 {[%emt 0:00:05]} Kf7 {[%emt 0:00:04]} 53. Kf3 {[%emt 0:00:09]} Ke6 {[%emt 0:00:13]} 1/2-1/2

[Event "EYCC Open U10 2021"]
[Site "Tornelo"]
[Date "2021.10.15"]
[Round "4.5"]
[White "Oikonomopoulos, Filippos"]
[Black "Surikov, Alexey"]
[Result "0-1"]
[ECO "A67"]
[WhiteElo "1650"]
[BlackElo "1548"]
[Annotator "NA"]
[PlyCount "86"]
[EventDate "2021.10.15"]
[EventType "swiss"]
[EventCountry "NET"]
[SourceTitle "playchess.com"]
[Source "ChessBase"]
[SourceQuality "1"]
[TimeControl "5400+30"]

1. d4 {[%emt 0:00:30]} Nf6 {[%emt 0:00:35]} 2. c4 {[%emt 0:00:08]} c5 {[%emt 0:00:06]} 3. d5 {[%emt 0:00:15]} e6 {[%emt 0:00:04]} 4. Nc3 {[%emt 0:00:12]} exd5 {[%emt 0:00:03]} 5. cxd5 {[%emt 0:00:07]} d6 {[%emt 0:00:05]} 6. e4 {[%emt 0:00:10]} g6 {[%emt 0:00:03]} 7. f4 {[%emt 0:00:33]} Bg7 {[%emt 0:00:36]} 8. Bb5+ {[%emt 0:00:20]} Nfd7 {[%emt 0:00:10]} 9. Bd3 {[%emt 0:00:44]} O-O {[%emt 0:00:05]} 10. Nf3 {[%emt 0:00:22]} Re8 {[%emt 0:00:54]} 11. O-O {[%emt 0:00:44]} a6 {[%emt 0:00:12]} 12. a4 {[%emt 0:00:12]} Nf6 {[%emt 0:00:08]} 13. h3 {[%emt 0:02:34]} c4 {[%emt 0:01:04]} 14. Bc2 {[%emt 0:04:36]} Nbd7 {[%emt 0:01:38]} 15. Be3 {[%emt 0:03:46]} b6 {[%emt 0:13:24]} 16. Qe2 {[%emt 0:11:44]} Qc7 {[%emt 0:01:26]} 17. Nd2 {[%emt 0:02:53]} Nc5 {[%emt 0:28:37]} 18. Qxc4 {[%emt 0:05:33]} Qe7 {[%emt 0:00:24]} 19. Bxc5 {[%emt 0:03:17]} bxc5 {[%emt 0:00:05]} 20. Nf3 {[%emt 0:02:52]} Nh5 {[%emt 0:03:34]} 21. f5 {[%emt 0:22:52]} Ng3 {[%emt 0:02:51]} 22. Rfe1 {[%emt 0:00:26]} Qb7 {[%emt 0:00:22]} 23. fxg6 {[%emt 0:03:13]} hxg6 {[%emt 0:00:23]} 24. Rab1 {[%emt 0:02:09]} Qe7 {[%emt 0:02:59]} 25. Ne2 {[%emt 0:06:18]} Nh5 {[%emt 0:05:20]} 26. b4 {[%emt 0:04:49]} cxb4 {[%emt 0:00:39]} 27. Rxb4 {[%emt 0:00:17]} a5 {[%emt 0:00:09]} 28. Rb6 {[%emt 0:00:16]} Qa7 {[%emt 0:00:24]} 29. Qc6 {[%emt 0:03:05]} Ba6 {[%emt 0:01:31]} 30. Ned4 {[%emt 0:06:29]} Rec8 {[%emt 0:03:56]} 31. Qxd6 {[%emt 0:01:15]} Rxc2 {[%emt 0:02:16]} 32. Nxc2 {[%emt 0:03:48]} Bf8 {[%emt 0:00:05]} 33. Qc6 {[%emt 0:02:04]} Rc8 {[%emt 0:00:28]} 34. Kh2 {[%emt 0:01:56]} Rxc6 {[%emt 0:00:19]} 35. Rxc6 {[%emt 0:00:10]} Bh6 {[%emt 0:00:27]} 36. Ncd4 {[%emt 0:00:55]} Bf4+ {[%emt 0:00:12]} 37. Kg1 {[%emt 0:00:25]} Be5 {[%emt 0:00:09]} 38. Rd1 {[%emt 0:00:58]} Be2 {[%emt 0:00:09]} 39. Nxe5 {[%emt 0:00:41]} Bxd1 {[%emt 0:00:04]} 40. Rc8+ {[%emt 0:00:12]} Kg7 {[%emt 0:00:07]} 41. Nec6 {[%emt 0:00:15]} Qc5 {[%emt 0:00:03]} 42. Rc7 {[%emt 0:00:21]} Bxa4 {[%emt 0:00:36]} 43. Kf2 {[%emt 0:01:09]} Bxc6 {[%emt 0:00:07]} 0-1

[Event "EYCC Open U10 2021"]
[Site "Tornelo"]
[Date "2021.10.15"]
[Round "4.6"]
[White "Temirbekov, Taimaz"]
[Black "Ekmekcioglu, Gokdeniz"]
[Result "1-0"]
[ECO "C10"]
[WhiteElo "1573"]
[BlackElo "1463"]
[Annotator "NA"]
[PlyCount "129"]
[EventDate "2021.10.15"]
[EventType "swiss"]
[EventCountry "NET"]
[SourceTitle "playchess.com"]
[Source "ChessBase"]
[SourceQuality "1"]
[TimeControl "5400+30"]

1. e4 {[%emt 0:00:30]} e6 {[%emt 0:00:41]} 2. d4 {[%emt 0:00:08]} d5 {[%emt 0:01:54]} 3. Nc3 {[%emt 0:00:13]} dxe4 {[%emt 0:00:25]} 4. Nxe4 {[%emt 0:00:14]} Bd7 {[%emt 0:00:22]} 5. Nf3 {[%emt 0:01:10]} Bc6 {[%emt 0:00:48]} 6. Bd3 {[%emt 0:00:12]} Nd7 {[%emt 0:00:50]} 7. O-O {[%emt 0:00:15]} Ngf6 {[%emt 0:00:33]} 8. Ng3 {[%emt 0:00:21]} Bxf3 {[%emt 0:01:33]} 9. Qxf3 {[%emt 0:00:17]} c6 {[%emt 0:00:11]} 10. Re1 {[%emt 0:02:54]} Be7 {[%emt 0:01:06]} 11. c3 {[%emt 0:01:07]} O-O {[%emt 0:01:12]} 12. Ne4 {[%emt 0:04:52]} Re8 {[%emt 0:04:38]} 13. Bd2 {[%emt 0:19:05]} Nf8 {[%emt 0:06:51]} 14. Rad1 {[%emt 0:05:09]} Ng6 {[%emt 0:04:07]} 15. Ng5 {[%emt 0:06:51]} Qd5 {[%emt 0:06:34]} 16. Qe2 {[%emt 0:00:45]} Bf8 {[%emt 0:08:02]} 17. Bc4 {[%emt 0:06:17]} Qd7 {[%emt 0:02:03]} 18. g3 {[%emt 0:06:48]} h6 {[%emt 0:05:10]} 19. Ne4 {[%emt 0:02:04]} Nxe4 {[%emt 0:01:59]} 20. Qxe4 {[%emt 0:00:07]} b5 {[%emt 0:00:50]} 21. Bb3 {[%emt 0:00:54]} a5 {[%emt 0:02:19]} 22. a3 {[%emt 0:02:24]} Ne7 {[%emt 0:03:57]} 23. h4 {[%emt 0:02:26]} Nd5 {[%emt 0:01:44]} 24. g4 {[%emt 0:03:24]} f5 {[%emt 0:03:56]} 25. Qg2 {[%emt 0:01:59]} Kh8 {[%emt 0:05:47]} 26. gxf5 {[%emt 0:02:45]} exf5 {[%emt 0:00:31]} 27. Qg6 {[%emt 0:00:44]} Bd6 {[%emt 0:05:56]} 28. Bc2 {[%emt 0:04:21]} Rf8 {[%emt 0:04:25]} 29. Re6 {[%emt 0:01:15]} Rf6 {[%emt 0:07:50]} 30. Rxf6 {[%emt 0:00:26]} Nxf6 {[%emt 0:00:04]} 31. Bxf5 {[%emt 0:00:16]} Qe8 {[%emt 0:00:11]} 32. Re1 {[%emt 0:00:41]} Qxg6+ {[%emt 0:00:22]} 33. Bxg6 {[%emt 0:00:06]} Kg8 {[%emt 0:00:18]} 34. Re6 {[%emt 0:01:10]} Rd8 {[%emt 0:00:06]} 35. c4 {[%emt 0:00:23]} bxc4 {[%emt 0:01:14]} 36. Bxa5 {[%emt 0:00:06]} Rd7 {[%emt 0:00:06]} 37. Bf5 {[%emt 0:00:42]} Ra7 {[%emt 0:00:39]} 38. Rxd6 {[%emt 0:00:11]} Rxa5 {[%emt 0:00:04]} 39. Bg6 {[%emt 0:00:34]} Kf8 {[%emt 0:00:10]} 40. Rxc6 {[%emt 0:00:05]} Rb5 {[%emt 0:00:10]} 41. Rxc4 {[%emt 0:00:28]} Rxb2 {[%emt 0:00:11]} 42. Rc8+ {[%emt 0:00:52]} Ke7 {[%emt 0:00:10]} 43. Rc7+ {[%emt 0:00:03]} Kf8 {[%emt 0:00:05]} 44. a4 {[%emt 0:00:57]} Nd5 {[%emt 0:00:44]} 45. Rf7+ {[%emt 0:00:14]} Kg8 {[%emt 0:00:08]} 46. Rd7 {[%emt 0:00:03]} Kf8 {[%emt 0:00:30]} 47. Rxd5 {[%emt 0:00:06]} Ke7 {[%emt 0:00:05]} 48. h5 {[%emt 0:00:08]} Kf6 {[%emt 0:00:02]} 49. Rd7 {[%emt 0:00:06]} Ra2 {[%emt 0:00:13]} 50. Rf7+ {[%emt 0:00:07]} Kg5 {[%emt 0:00:04]} 51. Rxg7 {[%emt 0:00:02]} Kh4 {[%emt 0:00:03]} 52. Ra7 {[%emt 0:00:12]} Kh3 {[%emt 0:00:14]} 53. Bf5+ {[%emt 0:00:06]} Kh4 {[%emt 0:00:04]} 54. a5 {[%emt 0:00:04]} Kg5 {[%emt 0:00:19]} 55. Bg6 {[%emt 0:00:15]} Kh4 {[%emt 0:00:05]} 56. Kg2 {[%emt 0:00:11]} Rd2 {[%emt 0:00:18]} 57. Re7 {[%emt 0:00:10]} Ra2 {[%emt 0:00:07]} 58. Re6 {[%emt 0:00:29]} Ra1 {[%emt 0:00:37]} 59. a6 {[%emt 0:00:11]} Ra3 {[%emt 0:00:03]} 60. d5 {[%emt 0:00:08]} Kg5 {[%emt 0:00:10]} 61. d6 {[%emt 0:00:09]} Rxa6 {[%emt 0:00:02]} 62. d7 {[%emt 0:00:04]} Rxe6 {[%emt 0:00:02]} 63. d8=Q+ {[%emt 0:00:05]} Kg4 {[%emt 0:00:06]} 64. Qd7 {[%emt 0:00:29]} Kf4 {[%emt 0:00:03]} 65. Qxe6 {[%emt 0:00:06]} 1-0

[Event "EYCC Open U10 2021"]
[Site "Tornelo"]
[Date "2021.10.15"]
[Round "4.7"]
[White "Kengurov, Yaroslav"]
[Black "Karpenko, Anton"]
[Result "1-0"]
[ECO "E15"]
[WhiteElo "1484"]
[BlackElo "1634"]
[Annotator "NA"]
[PlyCount "85"]
[EventDate "2021.10.15"]
[EventType "swiss"]
[EventCountry "NET"]
[SourceTitle "playchess.com"]
[Source "ChessBase"]
[SourceQuality "1"]
[TimeControl "5400+30"]

1. d4 {[%emt 0:00:30]} Nf6 {[%emt 0:00:35]} 2. c4 {[%emt 0:00:06]} e6 {[%emt 0:00:05]} 3. g3 {[%emt 0:00:04]} Bb4+ {[%emt 0:00:08]} 4. Bd2 {[%emt 0:00:07]} Be7 {[%emt 0:00:03]} 5. Bg2 {[%emt 0:00:08]} d5 {[%emt 0:00:09]} 6. Nf3 {[%emt 0:00:12]} O-O {[%emt 0:00:03]} 7. O-O {[%emt 0:00:10]} c6 {[%emt 0:00:23]} 8. Qc2 {[%emt 0:00:08]} Nbd7 {[%emt 0:00:05]} 9. b3 {[%emt 0:00:22]} b6 {[%emt 0:00:16]} 10. Rd1 {[%emt 0:00:12]} Ba6 {[%emt 0:00:24]} 11. Bf4 {[%emt 0:00:21]} Rc8 {[%emt 0:00:40]} 12. Nc3 {[%emt 0:01:10]} c5 {[%emt 0:06:46]} 13. e4 {[%emt 0:00:27]} cxd4 {[%emt 0:03:07]} 14. exd5 {[%emt 0:01:26]} dxc3 {[%emt 0:06:52]} 15. d6 {[%emt 0:00:07]} Re8 {[%emt 0:00:14]} 16. dxe7 {[%emt 0:00:06]} Rxe7 {[%emt 0:00:05]} 17. Ne5 {[%emt 0:02:08]} Qe8 {[%emt 0:08:24]} 18. Nc6 {[%emt 0:00:42]} e5 {[%emt 0:00:38]} 19. Nxe7+ {[%emt 0:00:24]} Qxe7 {[%emt 0:00:04]} 20. Bg5 {[%emt 0:00:47]} b5 {[%emt 0:04:19]} 21. Bh3 {[%emt 0:04:07]} Rc7 {[%emt 0:01:51]} 22. Qxc3 {[%emt 0:02:15]} bxc4 {[%emt 0:01:54]} 23. Qa5 {[%emt 0:00:45]} Nb8 {[%emt 0:00:18]} 24. Qd2 {[%emt 0:03:55]} Nc6 {[%emt 0:01:00]} 25. bxc4 {[%emt 0:02:38]} Nd4 {[%emt 0:00:38]} 26. Bg2 {[%emt 0:05:25]} Bxc4 {[%emt 0:10:56]} 27. Be3 {[%emt 0:08:40]} Rd7 {[%emt 0:07:31]} 28. Bxd4 {[%emt 0:00:54]} exd4 {[%emt 0:02:09]} 29. Rac1 {[%emt 0:00:51]} Ba6 {[%emt 0:04:46]} 30. Qa5 {[%emt 0:01:17]} Rd6 {[%emt 0:01:35]} 31. Qc5 {[%emt 0:03:03]} Qd8 {[%emt 0:01:30]} 32. Qc7 {[%emt 0:01:01]} d3 {[%emt 0:03:18]} 33. Qxd8+ {[%emt 0:00:43]} Rxd8 {[%emt 0:00:03]} 34. Bf1 {[%emt 0:08:40]} Bb5 {[%emt 0:02:09]} 35. Rc3 {[%emt 0:10:32]} Ne4 {[%emt 0:00:39]} 36. Rb3 {[%emt 0:02:07]} a6 {[%emt 0:03:14]} 37. a4 {[%emt 0:12:38]} Nc5 {[%emt 0:00:09]} 38. axb5 {[%emt 0:01:27]} Nxb3 {[%emt 0:00:07]} 39. bxa6 {[%emt 0:00:07]} Nc5 {[%emt 0:07:59]} 40. a7 {[%emt 0:00:16]} Ra8 {[%emt 0:01:39]} 41. Rb1 {[%emt 0:00:27]} Nd7 {[%emt 0:01:06]} 42. Rb7 {[%emt 0:00:28]} Nf8 {[%emt 0:00:16]} 43. Bxd3 {[%emt 0:00:18]} 1-0

[Event "EYCC Open U10 2021"]
[Site "Tornelo"]
[Date "2021.10.15"]
[Round "4.9"]
[White "Ahmad, Khagan"]
[Black "Kviriashvili, Andria"]
[Result "0-1"]
[ECO "C06"]
[WhiteElo "2009"]
[BlackElo "1406"]
[Annotator "ChessBase"]
[PlyCount "102"]
[EventDate "2021.10.15"]
[EventType "swiss"]
[EventCountry "NET"]
[SourceTitle "playchess.com"]
[Source "ChessBase"]
[SourceQuality "1"]
[TimeControl "5400+30"]

1. e4 {[%emt 0:00:30]} e6 {[%emt 0:00:40]} 2. d4 {[%emt 0:00:03]} d5 {[%emt 0:00:06]} 3. Nd2 {[%emt 0:00:02]} Nf6 {[%emt 0:00:05]} 4. e5 {[%emt 0:00:02]} Nfd7 {[%emt 0:00:05]} 5. Bd3 {[%emt 0:00:02]} c5 {[%emt 0:00:05]} 6. c3 {[%emt 0:00:04]} Nc6 {[%emt 0:00:09]} 7. Ne2 {[%emt 0:00:02]} cxd4 {[%emt 0:00:05]} 8. cxd4 {[%emt 0:00:02]} f6 {[%emt 0:00:05]} 9. exf6 {[%emt 0:00:04]} Nxf6 {[%emt 0:00:06]} 10. O-O {[%emt 0:00:06]} Bd6 {[%emt 0:00:07]} 11. Nf3 {[%emt 0:00:04]} O-O {[%emt 0:00:07]} 12. Bg5 {[%emt 0:00:31]} Qb6 {[%emt 0:05:00]} 13. Qb1 {[%emt 0:00:21]} h6 {[%emt 0:08:59]} 14. Bh4 {[%emt 0:01:34]} e5 {[%emt 0:02:01]} 15. dxe5 {[%emt 0:21:00]} Nxe5 {[%emt 0:00:33]} 16. Nfd4 {[%emt 0:01:20]} Nxd3 {[%emt 0:00:51]} 17. Qxd3 {[%emt 0:00:03]} Bd7 {[%emt 0:02:53]} 18. Bg3 {[%emt 0:01:56]} Rad8 {[%emt 0:05:53]} 19. Bxd6 {[%emt 0:04:01]} Qxd6 {[%emt 0:00:10]} 20. f3 {[%emt 0:00:55]} Rfe8 {[%emt 0:02:53]} 21. Rfe1 {[%emt 0:00:10]} Qb6 {[%emt 0:00:37]} 22. Qb3 {[%emt 0:02:12]} Rxe2 {[%emt 0:01:30]} 23. Rxe2 {[%emt 0:00:37]} Qxd4+ {[%emt 0:00:07]} 24. Re3 {[%emt 0:08:32]} Re8 {[%emt 0:06:48]} 25. Rae1 {[%emt 0:00:38]} Ba4 {[%emt 0:03:38]} 26. Qc3 {[%emt 0:03:00]} Qxc3 {[%emt 0:00:54]} 27. Rxe8+ {[%emt 0:00:03]} Bxe8 {[%emt 0:00:36]} 28. bxc3 {[%emt 0:00:04]} Kf7 {[%emt 0:00:05]} 29. Kf2 {[%emt 0:00:03]} Bb5 {[%emt 0:00:15]} 30. Ke3 {[%emt 0:00:09]} Nd7 {[%emt 0:02:09]} 31. Kd4 {[%emt 0:00:24]} Bc4 {[%emt 0:02:51]} 32. h4 {[%emt 0:02:54]} Kf6 {[%emt 0:08:48]} 33. a3 {[%emt 0:02:45]} Kf7 {[%emt 0:00:34]} 34. g4 {[%emt 0:00:19]} b6 {[%emt 0:05:26]} 35. f4 {[%emt 0:07:38]} Nc5 {[%emt 0:05:02]} 36. f5 {[%emt 0:01:59]} Nb3+ {[%emt 0:03:16]} 37. Ke5 {[%emt 0:00:14]} Nc5 {[%emt 0:01:30]} 38. Rg1 {[%emt 0:05:33]} Nd3+ {[%emt 0:02:34]} 39. Kd6 {[%emt 0:05:33]} Kf6 {[%emt 0:00:32]} 40. Kc7 {[%emt 0:00:25]} Ne5 {[%emt 0:02:58]} 41. Kb7 {[%emt 0:00:29]} b5 {[%emt 0:00:16]} 42. Kxa7 {[%emt 0:00:38]} Nf3 {[%emt 0:00:05]} 43. Rb1 {[%emt 0:29:32]} Nxh4 {[%emt 0:00:36]} 44. Kb6 {[%emt 0:00:03]} Nf3 {[%emt 0:00:16]} 45. Rxb5 {[%emt 0:03:21]} Bxb5 {[%emt 0:00:06]} 46. Kxb5 {[%emt 0:00:02]} Ne5 {[%emt 0:04:19]} 47. a4 {[%emt 0:00:07]} Nc4 {[%emt 0:00:12]} 48. Kc5 {[%emt 0:01:07]} Ke5 {[%emt 0:00:05]} 49. Kc6 {[%emt 0:00:12]} Kf4 {[%emt 0:03:44]} 50. Kxd5 {[%emt 0:00:09]} Na5 {[%emt 0:00:41]} 51. c4 {[%emt 0:00:22]} Kxg4 {[%emt 0:00:05]} 0-1

[Event "EYCC Open U10 2021"]
[Site "Tornelo"]
[Date "2021.10.15"]
[Round "4.10"]
[White "Ochedzan, Filip"]
[Black "Kocharyan, Vache"]
[Result "1-0"]
[ECO "B65"]
[WhiteElo "1696"]
[BlackElo "1367"]
[Annotator "NA"]
[PlyCount "141"]
[EventDate "2021.10.15"]
[EventType "swiss"]
[EventCountry "NET"]
[SourceTitle "playchess.com"]
[Source "ChessBase"]
[SourceQuality "1"]
[TimeControl "5400+30"]

1. e4 {[%emt 0:00:30]} c5 {[%emt 0:00:35]} 2. Nf3 {[%emt 0:00:12]} Nc6 {[%emt 0:00:03]} 3. d4 {[%emt 0:00:06]} cxd4 {[%emt 0:00:03]} 4. Nxd4 {[%emt 0:00:04]} Nf6 {[%emt 0:00:03]} 5. Nc3 {[%emt 0:00:06]} d6 {[%emt 0:00:03]} 6. Bg5 {[%emt 0:00:20]} e6 {[%emt 0:00:07]} 7. Qd2 {[%emt 0:00:20]} Be7 {[%emt 0:00:06]} 8. f4 {[%emt 0:00:42]} O-O {[%emt 0:00:09]} 9. O-O-O {[%emt 0:00:17]} Nxd4 {[%emt 0:00:13]} 10. Qxd4 {[%emt 0:00:29]} Qa5 {[%emt 0:00:04]} 11. e5 {[%emt 0:01:15]} dxe5 {[%emt 0:00:13]} 12. Qxe5 {[%emt 0:00:10]} Qxe5 {[%emt 0:00:14]} 13. fxe5 {[%emt 0:01:17]} Nd5 {[%emt 0:00:11]} 14. Bxe7 {[%emt 0:00:27]} Nxe7 {[%emt 0:00:05]} 15. Bd3 {[%emt 0:01:21]} Rb8 {[%emt 0:15:18]} 16. Rhe1 {[%emt 0:04:25]} h6 {[%emt 0:03:22]} 17. Be4 {[%emt 0:04:24]} b5 {[%emt 0:12:44]} 18. Rd2 {[%emt 0:07:44]} b4 {[%emt 0:07:09]} 19. Na4 {[%emt 0:01:40]} Rb5 {[%emt 0:00:08]} 20. b3 {[%emt 0:18:57]} Kh8 {[%emt 0:14:59]} 21. Bd3 {[%emt 0:05:04]} Rd5 {[%emt 0:00:23]} 22. Nb2 {[%emt 0:01:27]} Rfd8 {[%emt 0:00:59]} 23. Nc4 {[%emt 0:01:11]} Nc6 {[%emt 0:02:40]} 24. Rf2 {[%emt 0:02:24]} Kg8 {[%emt 0:04:21]} 25. Be4 {[%emt 0:08:51]} Rc5 {[%emt 0:00:09]} 26. Bxc6 {[%emt 0:00:38]} Rxc6 {[%emt 0:00:04]} 27. Nd6 {[%emt 0:01:06]} Rc7 {[%emt 0:00:10]} 28. Rd2 {[%emt 0:01:15]} Ba6 {[%emt 0:00:57]} 29. Re4 {[%emt 0:01:08]} Rb8 {[%emt 0:12:58]} 30. Kb1 {[%emt 0:05:27]} Rb6 {[%emt 0:04:39]} 31. Rf4 {[%emt 0:03:02]} Bb7 {[%emt 0:01:35]} 32. Rdf2 {[%emt 0:03:05]} f5 {[%emt 0:00:54]} 33. Rd4 {[%emt 0:04:51]} Bc6 {[%emt 0:05:32]} 34. h4 {[%emt 0:01:39]} g6 {[%emt 0:00:50]} 35. g3 {[%emt 0:00:55]} Kf8 {[%emt 0:02:58]} 36. Rc4 {[%emt 0:02:55]} Ke7 {[%emt 0:00:22]} 37. Rd2 {[%emt 0:01:02]} a5 {[%emt 0:00:30]} 38. Rc5 {[%emt 0:01:34]} Ra6 {[%emt 0:00:36]} 39. Nc4 {[%emt 0:01:36]} Raa7 {[%emt 0:01:04]} 40. Nxa5 {[%emt 0:03:13]} Bd5 {[%emt 0:00:04]} 41. Rxc7+ {[%emt 0:00:05]} Rxc7 {[%emt 0:00:02]} 42. Rd4 {[%emt 0:00:37]} Rc5 {[%emt 0:01:35]} 43. Nc4 {[%emt 0:00:20]} Bxc4 {[%emt 0:00:11]} 44. Rxc4 {[%emt 0:00:04]} Rxe5 {[%emt 0:00:57]} 45. Rxb4 {[%emt 0:01:28]} Re3 {[%emt 0:00:18]} 46. g4 {[%emt 0:00:28]} Rg3 {[%emt 0:00:07]} 47. gxf5 {[%emt 0:00:16]} exf5 {[%emt 0:00:10]} 48. Kc1 {[%emt 0:00:15]} Kd6 {[%emt 0:00:17]} 49. a4 {[%emt 0:01:31]} h5 {[%emt 0:00:50]} 50. a5 {[%emt 0:02:09]} Kc7 {[%emt 0:02:38]} 51. a6 {[%emt 0:01:40]} Re3 {[%emt 0:00:03]} 52. a7 {[%emt 0:00:38]} Re8 {[%emt 0:00:05]} 53. Ra4 {[%emt 0:00:43]} Kb7 {[%emt 0:00:09]} 54. a8=Q+ {[%emt 0:00:48]} Rxa8 {[%emt 0:00:04]} 55. Rxa8 {[%emt 0:00:02]} Kxa8 {[%emt 0:00:02]} 56. Kd2 {[%emt 0:00:04]} Kb7 {[%emt 0:00:01]} 57. Ke3 {[%emt 0:00:03]} Kc6 {[%emt 0:00:08]} 58. Kd4 {[%emt 0:00:27]} Kd6 {[%emt 0:00:07]} 59. b4 {[%emt 0:00:50]} Kc6 {[%emt 0:00:11]} 60. c4 {[%emt 0:00:06]} Kb6 {[%emt 0:02:19]} 61. c5+ {[%emt 0:01:53]} Kb7 {[%emt 0:01:19]} 62. b5 {[%emt 0:00:26]} Kc7 {[%emt 0:00:05]} 63. Ke5 {[%emt 0:03:26]} Kd7 {[%emt 0:00:52]} 64. Kd5 {[%emt 0:01:48]} g5 {[%emt 0:00:07]} 65. b6 {[%emt 0:00:13]} gxh4 {[%emt 0:00:34]} 66. c6+ {[%emt 0:00:57]} Kc8 {[%emt 0:01:40]} 67. Kd6 {[%emt 0:00:39]} h3 {[%emt 0:00:24]} 68. b7+ {[%emt 0:00:59]} Kb8 {[%emt 0:00:05]} 69. c7+ {[%emt 0:01:13]} Kxb7 {[%emt 0:00:04]} 70. Kd7 {[%emt 0:00:08]} h2 {[%emt 0:00:01]} 71. c8=Q+ {[%emt 0:00:05]} 1-0

[Event "EYCC Open U10 2021"]
[Site "Tornelo"]
[Date "2021.10.15"]
[Round "4.11"]
[White "Dumbelovic, Novak"]
[Black "Harutyunyan, Arman G."]
[Result "1-0"]
[ECO "B32"]
[WhiteElo "1688"]
[BlackElo "1395"]
[Annotator "NA"]
[PlyCount "95"]
[EventDate "2021.10.15"]
[EventType "swiss"]
[EventCountry "NET"]
[SourceTitle "playchess.com"]
[Source "ChessBase"]
[SourceQuality "1"]
[TimeControl "5400+30"]

1. e4 {[%emt 0:00:30]} c5 {[%emt 0:00:36]} 2. Nf3 {[%emt 0:00:32]} Nc6 {[%emt 0:00:04]} 3. d4 {[%emt 0:00:58]} cxd4 {[%emt 0:00:04]} 4. Nxd4 {[%emt 0:00:25]} e5 {[%emt 0:00:04]} 5. Nb5 {[%emt 0:00:40]} d6 {[%emt 0:00:04]} 6. c4 {[%emt 0:05:00]} a6 {[%emt 0:00:17]} 7. N5c3 {[%emt 0:05:33]} Nf6 {[%emt 0:00:37]} 8. Bd3 {[%emt 0:05:33]} Be7 {[%emt 0:00:21]} 9. Bg5 {[%emt 0:05:42]} Nxe4 {[%emt 0:07:17]} 10. Bxe7 {[%emt 0:05:14]} Nxc3 {[%emt 0:00:26]} 11. Nxc3 {[%emt 0:00:20]} Nxe7 {[%emt 0:00:13]} 12. Qc2 {[%emt 0:03:11]} h6 {[%emt 0:01:12]} 13. O-O-O {[%emt 0:03:35]} Qc7 {[%emt 0:02:16]} 14. Rhe1 {[%emt 0:02:11]} Be6 {[%emt 0:01:19]} 15. f4 {[%emt 0:03:07]} O-O-O {[%emt 0:01:18]} 16. fxe5 {[%emt 0:03:21]} dxe5 {[%emt 0:01:30]} 17. Kb1 {[%emt 0:07:30]} f6 {[%emt 0:01:32]} 18. Rc1 {[%emt 0:06:50]} Nc6 {[%emt 0:03:40]} 19. Bf5 {[%emt 0:05:02]} Qf7 {[%emt 0:00:34]} 20. Nd5 {[%emt 0:02:15]} Kb8 {[%emt 0:01:28]} 21. Rcd1 {[%emt 0:07:08]} Bxd5 {[%emt 0:00:55]} 22. cxd5 {[%emt 0:00:32]} Nd4 {[%emt 0:00:03]} 23. Rxd4 {[%emt 0:03:04]} exd4 {[%emt 0:00:10]} 24. Be6 {[%emt 0:00:04]} Qc7 {[%emt 0:00:07]} 25. Qd3 {[%emt 0:01:37]} Rhe8 {[%emt 0:01:06]} 26. Qxd4 {[%emt 0:01:09]} Qd6 {[%emt 0:00:04]} 27. Qg4 {[%emt 0:01:59]} Qe7 {[%emt 0:01:38]} 28. Rc1 {[%emt 0:01:43]} Rd6 {[%emt 0:00:52]} 29. Qg3 {[%emt 0:02:50]} Ka8 {[%emt 0:00:08]} 30. a3 {[%emt 0:02:04]} g5 {[%emt 0:00:53]} 31. Qh3 {[%emt 0:02:17]} Qh7+ {[%emt 0:03:27]} 32. Ka1 {[%emt 0:01:30]} h5 {[%emt 0:00:34]} 33. Qc3 {[%emt 0:02:07]} Qe7 {[%emt 0:00:44]} 34. Rf1 {[%emt 0:01:46]} Rxe6 {[%emt 0:01:55]} 35. dxe6 {[%emt 0:00:06]} Qxe6 {[%emt 0:00:03]} 36. Rxf6 {[%emt 0:00:55]} Qe5 {[%emt 0:00:38]} 37. Qxe5 {[%emt 0:01:05]} Rxe5 {[%emt 0:00:03]} 38. Rf2 {[%emt 0:00:23]} Ka7 {[%emt 0:00:10]} 39. Kb1 {[%emt 0:00:18]} Kb6 {[%emt 0:00:05]} 40. Kc2 {[%emt 0:00:05]} Kc5 {[%emt 0:00:04]} 41. Kd3 {[%emt 0:00:09]} Kd5 {[%emt 0:00:03]} 42. Rf7 {[%emt 0:00:48]} Kc6 {[%emt 0:00:42]} 43. Rf6+ {[%emt 0:00:14]} Kc5 {[%emt 0:00:28]} 44. Rf2 {[%emt 0:00:43]} Kd5 {[%emt 0:00:08]} 45. Rc2 {[%emt 0:01:34]} Re7 {[%emt 0:01:02]} 46. b4 {[%emt 0:00:28]} b6 {[%emt 0:00:04]} 47. Rc8 {[%emt 0:00:32]} b5 {[%emt 0:01:13]} 48. Rc5+ {[%emt 0:00:21]} 1-0